Cogmind - Beta 14 @@@ ROGUE MODE // 2024.08.17 @ 17:55:29 Player: THN-L0C Result: Destroyed by QA-N01(R) with Subdweller Laser Performance ------------- Evolutions (0) 0 Regions Visited (2) 400 Robots Destroyed (29) 145 Value Destroyed (489) 489 Prototype IDs (0) 0 Alien Tech Used (0) 0 Bonus (0) 0 TOTAL SCORE: 1034 Bonus ------- None Cogmind --------- Core Integrity 0/250 Matter 248/300 Energy 200/200 System Corruption 0% Temperature Cool (6) Movement Rolling (130) Ox2 Location -10/Subcaves Parts ------- > --- POWER (1) -------- Subdweller Power Source > --- PROPULSION (2) --- Compact Wheel Compact Wheel > --- UTILITY (2) ------ Huge Storage Unit Light Armor Plating > --- WEAPON (2) ------- Medium Laser Small Laser > --- INVENTORY (25) --- Light Ion Engine Light Ion Engine Light Ion Engine Subdweller Power Source Cooling System Large Storage Unit Medium Battery (150) Weight Redist. System Subdweller Optics Seismic Detector Targeting Computer Propulsion Shielding Small Laser Small Laser Small Laser Small Laser Mini Grenade Launcher Subdweller Shrapnel Launcher Datajack Mining Laser Hammer Mining Claw Peak State ------------ > --- POWER ------------ Subdweller Power Source > --- PROPULSION ------- Compact Wheel Subdweller Monowheel > --- UTILITY ---------- Huge Storage Unit Propulsion Shielding > --- WEAPON ----------- Subdweller Laser Mini Grenade Launcher > --- INVENTORY -------- Light Ion Engine Light Ion Engine Light Ion Engine Subdweller Power Source Compact Wheel Compact Wheel Cooling System Large Storage Unit Medium Battery Weight Redist. System Seismic Detector Targeting Computer Medium Laser Small Laser Small Laser Small Laser Small Laser Small Laser Subdweller Machine Gun Mini Grenade Launcher Datajack Mining Laser Mining Claw [Rating: 13] Favorites ----------- Power Light Ion Engine Engine Light Ion Engine Propulsion Compact Wheel Wheel Compact Wheel Utility Seismic Detector Device Seismic Detector Storage Huge Storage Unit Protection Propulsion Shielding Weapon Medium Laser Energy Gun Medium Laser Ballistic Gun Subdweller Machine Gun Launcher Mini Grenade Launcher Impact Weapon Hammer Slashing Weapon Mining Claw Build | -11 -10 -10 ------- Run | Yrd Mat Sub Slots Evolved . | . . . Power . | . . . Propulsion . | . . . Utility . | . . . Weapon . | . . . Parts Attached 33 | 7 14 12 Power 6 | 1 3 2 Engine 6 | 1 3 2 Core . | . . . Reactor . | . . . Propulsion 6 | 2 1 3 Treads . | . . . Leg . | . . . Wheel 6 | 2 1 3 Hover . | . . . Flight . | . . . Utility 10 | 2 7 1 Device 4 | 1 3 . Storage 3 | 1 2 . Processor . | . . . Hackware . | . . . Protection 3 | . 2 1 Artifact . | . . . Weapon 11 | 2 3 6 Energy Gun 7 | 2 2 3 Energy Cannon . | . . . Ballistic Gun 1 | . . 1 Ballistic Cannon . | . . . Launcher 1 | . 1 . Special Weapon . | . . . Impact Weapon 1 | . . 1 Slashing Weapon 1 | . . 1 Piercing Weapon . | . . . Special Melee Weapon . | . . . Unidentified Prototypes . | . . . Parts Lost 8 | . 1 7 Power 1 | . . 1 Propulsion 4 | . 1 3 Utility . | . . . Weapon 3 | . . 3 Highest Loss Streak 5 | . 1 5 To Critical Strikes . | . . . Average Slot Usage (%) 98 | . 99 97 Engine 14 | . 14 14 Wheel 26 | . 27 26 Device 10 | . 12 . Storage 14 | . 14 14 Protection 3 | . 1 14 Energy Gun 24 | . 28 12 Launcher 1 | . . 7 Peak Build Rating 13 | 7 10 13 Average Rating 8 | 5 8 10 On Entrance 5 | . 7 10 Naked Turns . | . . . Heaviest Build 91 | 12 89 91 Greatest Support 36 | 32 32 36 Greatest Overweight (x) 5 | . 5 5 Average Overweight (x) 1 | . 1 2 Largest Inventory Capacity 25 | 8 25 25 Average Capacity 17 | 7 16 25 Most Carried 23 | 5 20 23 Average Carried 13 | 3 11 21 Final Capacity 25 | 8 25 25 Final Carried 22 | 5 20 22 Class Distribution -------------------- 100% | Mutant Dominant Class ---------------- Mutant | -10/Materials Mutant | -10/Subcaves Resources | -11 -10 -10 ----------- Run | Yrd Mat Sub Matter Collected 530 | 260 135 135 Remotely . | . . . Salvage Created 731 | 138 427 166 Parts 58 | 13 30 15 Haulers Intercepted 1 | . 1 . Recyclers Shooed 4 | 1 3 . Parts Field Recycled . | . . . Retrieved Matter . | . . . Parts Self-Destructed 14 | . . 14 Prevented . | . . . Kills | -11 -10 -10 ------- Run | Yrd Mat Sub Combat Hostiles Destroyed 19 | . 12 7 Guns 14 | . 12 2 AOE 5 | . . 5 Classes Destroyed 9 | 3 5 1 Worker 2 | 1 1 . Tunneler 4 | 3 1 . Hauler 1 | . 1 . Recycler 1 | 1 . . Operator 1 | . 1 . Watcher 1 | . 1 . Swarmer 11 | . 8 3 Grunt 4 | . 4 . Subdweller 4 | . . 4 Best Kill Streak 3 | 2 3 3 Combat Bots Only 3 | . 3 3 Max Kills in Single Turn 2 | 1 2 2 Gunslinging 1 | . 1 . Exploded 2 | . . 2 Melee . | . . . Uniques/NPCs Destroyed . | . . . Combat | -11 -10 -10 -------- Run | Yrd Mat Sub Hostile Shots Fired 93 | . 59 34 Missed 31 | . 17 14 Damage Taken 938 | . 350 588 Core 270 | . 102 168 Absorbed by Shields . | . . . Redirected to Shielding 39 | . 5 34 Core Remaining (%) 100 | 100 . . Volleys Fired 85 | 10 52 23 Largest 2 | 2 2 2 Hottest 90 | 90 90 90 Shots Fired 159 | 20 102 37 Gun 150 | 20 102 28 Cannon . | . . . Launcher 9 | . . 9 Special . | . . . Kinetic 1 | . . 1 Thermal 149 | 20 102 27 Explosive 9 | . . 9 Electromagnetic . | . . . Robot Hit Streak 14 | 7 10 14 Robot Miss Streak 4 | 1 4 2 Penetration Max . | . . . Secondary Targets 4 | . 4 . Max Gunslinging Chain 1 | . 1 . Shots Hit Robots 101 | 15 61 25 Core Hits 53 | 6 29 18 Critical Kills . | . . . Critical Parts Destroyed . | . . . Critical Strikes 7 | 2 4 1 Burn 7 | 2 4 1 Melee Attacks 3 | . . 3 Impact 2 | . . 2 Slashing 1 | . . 1 Piercing . | . . . Sneak Attacks . | . . . Combat Hostiles . | . . . Follow-up Attacks . | . . . Damage Inflicted 1552 | 187 763 602 Guns 1193 | 187 763 243 Cannons . | . . . Explosions 359 | . . 359 Melee . | . . . Ramming . | . . . Kinetic . | . . . Thermal 1193 | 187 763 243 Explosive 359 | . . 359 Electromagnetic . | . . . Impact . | . . . Slashing . | . . . Piercing . | . . . Highest Corruption . | . . . Average Corruption . | . . . Corruption Purged . | . . . Corruption Blocked . | . . . Overload Shots . | . . . Overflow Damage 5 | . . 5 Projectiles . | . . . Explosions 5 | . . 5 Melee . | . . . Knockbacks . | . . . Impact . | . . . Kinetic . | . . . Secondary . | . . . Self-Inflicted Damage 32 | . . 32 Shots 1 | . . 1 Rammed . | . . . Targets Rammed . | . . . Kicked . | . . . Crushed . | . . . Highest Temperature 300 | 150 300 . Average Temperature 75 | 66 77 . Received Heat Transfer 123 | . 45 78 Effects 1 | . 1 . Interference 1 | . 1 . Siege Activations . | . . . Robots Corrupted . | . . . Combat Hostiles . | . . . Parts Fried . | . . . Impact Corruptions . | . . . Robots Melted . | . . . Combat Hostiles . | . . . Parts Melted 5 | 1 3 1 Heat Transferred 3654 | 644 2292 718 Parts Sabotaged . | . . . Parts Stolen . | . . . Parts Stripped . | . . . Power Chain Reactions . | . . . Alert | -11 -10 -10 ------- Run | Yrd Mat Sub Peak Influence 243 | 25 243 . Initial 16 | . 16 . Average 81 | 9 85 . Maximum Alert Level 1 | . 1 . Low Security (%) 94 | 100 94 . Level 1 5 | . 5 . Level 2 . | . . . Level 3 . | . . . Level 4 . | . . . Level 5 . | . . . High Security . | . . . Max Security . | . . . Squads Dispatched 1 | . 1 . Investigation . | . . . Extermination . | . . . Reinforcement 1 | . 1 . Assault . | . . . Garrison . | . . . Intercept . | . . . Searches Triggered . | . . . Construction Impeded . | . . . Haulers Reinforced . | . . . Active Scanning Responses . | . . . Cargo Convoy Interrupts . | . . . Stealth | -11 -10 -10 --------- Run | Yrd Mat Sub Distress Signals 2 | . 2 . Communications Jammed . | . . . Distress Signals . | . . . Times Spotted 36 | . 26 10 Peak Tracking Total 4 | . 4 4 Tactical Retreats 4 | . 3 1 Traps | -11 -10 -10 ------- Run | Yrd Mat Sub Traps Triggered . | . . . Indirectly . | . . . Trap Hack Attempts . | . . . Triggered . | . . . Disarmed . | . . . Reprogrammed . | . . . Reused . | . . . Traps Extracted . | . . . Installed . | . . . Triggered 1 | . . 1 Machines | -11 -10 -10 ---------- Run | Yrd Mat Sub Machines Disabled 1 | . . 1 Max in Single Turn 1 | . . 1 Machines Repaired . | . . . Machines Dismantled . | . . . Machines Sabotaged . | . . . Overloaded Fab Kills . | . . . Hacking | -11 -10 -10 --------- Run | Yrd Mat Sub Machines Accessed 6 | . 6 . Terminals 6 | . 6 . Fabricators . | . . . Repair Stations . | . . . Recycling Units . | . . . Scanalyzers . | . . . Garrison Access . | . . . Total Hacks 14 | . 14 . Successful 5 | . 5 . Failed 8 | . 8 . Catastrophic . | . . . Database Lockouts 1 | . 1 . Manual 8 | . 8 . Terminals 14 | . 14 . Fabricators . | . . . Repair Stations . | . . . Recycling Units . | . . . Scanalyzers . | . . . Garrison Access . | . . . Terminal Hacks 5 | . 5 . Robot Analysis 3 | . 3 . Emergency Access Points 1 | . 1 . Zone Layout 1 | . 1 . Fabricator Hacks . | . . . Repair Station Hacks . | . . . Recycling Unit Hacks . | . . . Scanalyzer . | . . . Garrison Access Hacks . | . . . Unauthorized Hacks . | . . . Terminals . | . . . Fabricators . | . . . Repair Stations . | . . . Recycling Units . | . . . Scanalyzers . | . . . Garrison Access . | . . . Data Cores Recovered . | . . . Used . | . . . Hacking Detections 5 | . 5 . Full Trace Events . | . . . Feedback Events . | . . . Feedback Blocked . | . . . Robot Schematics Acquired . | . . . Robots Built . | . . . Authchips . | . . . Time . | . . . Total Robot Build Rating . | . . . Part Schematics Acquired . | . . . Parts Built . | . . . Authchips . | . . . Time . | . . . Total Part Build Rating . | . . . Parts Repaired . | . . . Time . | . . . Parts Recycled . | . . . Recycled Matter . | . . . Retrieved Matter . | . . . Retrieved Components . | . . . Parts Scanalyzed . | . . . Part Schematics Acquired . | . . . Parts Damaged . | . . . Bothacking | -11 -10 -10 ------------ Run | Yrd Mat Sub Used RIF Installer . | . . . Robots Hacked . | . . . Non-combat . | . . . Combat . | . . . Robot Hacks Applied . | . . . Relay Couplers Released . | . . . Fabnet Peak Effective % . | . . . Robots Rewired . | . . . Allies Hacked . | . . . Hacks Repelled . | . . . Allies | -11 -10 -10 -------- Run | Yrd Mat Sub Total Allies . | . . . Largest Group . | . . . Highest-Rated Group . | . . . Highest-Rated Ally . | . . . Total Orders . | . . . Ally Attacks . | . . . Total Damage . | . . . Kills . | . . . Allies Corrupted . | . . . Allies Melted . | . . . Intel | -11 -10 -10 ------- Run | Yrd Mat Sub Robot Analysis Total 3 | . 3 . Derelict Logs Recovered . | . . . Drone Launches . | . . . Drone Recoveries . | . . . Exploration | -11 -10 -10 ------------- Run | Yrd Mat Sub Turns Passed 2790 | 141 2146 503 Spaces Moved 1479 | 95 1080 304 Core 6 | 6 . . Treads . | . . . Legs . | . . . Wheels 1473 | 89 1080 304 Hover . | . . . Flight . | . . . Fastest Speed 50 | 50 100 129 Average Speed 119 | 96 117 133 Slowest Speed 175 | 100 175 175 Overloaded Moves . | . . . Propulsion Burnouts . | . . . Robots Hopped . | . . . Cave-ins Triggered . | . . . Exploration Rate (%) 39 | 4 100 15 Regions Visited 2 Branch Regions 1 Pre-discovered Areas . | . . . Known Exits Taken . | . . . Unknown Exits Taken 2 | 1 1 . Scrap Searched . | . . . Spaces Dug 10 | . . 10 Terrain Destroyed 43 | . . 43 Melee . | . . . Projectile . | . . . AOE 43 | . . 43 Terrain Rammed . | . . . Walls Destroyed . | . . . Machines Disabled . | . . . Actions | -11 -10 -10 --------- Run | Yrd Mat Sub Total 2333 | 120 1858 355 Wait 697 | 3 688 6 Move 1477 | 94 1079 304 Hop . | . . . Pick Up 31 | 6 18 7 Fast Attach 7 | 6 . 1 Attach 8 | 1 1 6 Detach . | . . . Swap 18 | . 13 5 Drop 7 | . 7 . Fire 85 | 10 52 23 Melee 3 | . . 3 Ram . | . . . Kick . | . . . Crush . | . . . Escape Stasis . | . . . Rewire . | . . . Trap . | . . . Miscellaneous . | . . . Route ------- -11/Scrapyard -10/Materials (discovered 6 exits: [*Mat x3] / [*Min x2] / [*Sub]) -10/Subcaves (discovered 2 exits: [*Mat] / [*Rec]) History --------- Turn | Location | Event 9 | -11/Scrapyard | Discovered new exit (range 15) 142 | -11/Scrapyard | Entered Materials 307 | -10/Materials | Build established: Mutant 1039 | -10/Materials | Discovered new exit (range 16) 1166 | -10/Materials | Discovered new exit (range 8) 1215 | -10/Materials | Discovered new exit (range 6) 1329 | -10/Materials | Discovered new exit (range 12) 2057 | -10/Materials | Discovered new exit (range 16) 2087 | -10/Materials | Central database locked down 2275 | -10/Materials | Discovered new exit (range 10) 2288 | -10/Materials | Entered Subcaves 2394 | -10/Subcaves | Shifting Twisted Machinery released Sub. Optics 2395 | -10/Subcaves | Shifting Twisted Machinery released Sub. Power Source 2521 | -10/Subcaves | Discovered new exit (range 10) 2554 | -10/Subcaves | Ambushed by Subdweller buried in earth 2562 | -10/Subcaves | Core integrity fell below 50% 2575 | -10/Subcaves | Core integrity fell below 20% 2605 | -10/Subcaves | Lost 5 parts (2n3w) 2729 | -10/Subcaves | Discovered new exit (range 13) 2791 | -10/Subcaves | Destroyed by QA-N01(R) with Subdweller Laser Last Messages --------------- 02555_ Sub. Laser destroyed. 02561_ Sub. Machine Gun destroyed. 02564_ Sub. Monowheel destroyed. 02568_ ZA-DX9(R) suffers critical hit (Burn). 02574_ Com. Wheel destroyed. 02574_ ZA-DX9(R) destroyed. 02577_ Acquired 24 matter. 02578_ The unstable cave ceiling collapses. 02581_ Acquired Lgt. Armor Plating. 02583_ Acquired Sub. Shrapnel Launcher. 02585_ Acquired Hammer. 02588_ Acquired Sub. Optics. 02607_ The unstable cave ceiling collapses. 02710_ Subatomizers dissect the Sub. Optics. 02729_ EXIT=FOUND 02739_ Subatomizers dissect the Sub. Optics, destroying it. 02764_ Sub. Laser melted. 02764_ 7E-DJM(R) destroyed. 02778_ Acquired 52 matter. 02788_ QA-N01(R) affixes Scrap Shield Fragment to Scrap Shield. Map ----- +----------------------------------------------------+ | ?????????????????????????????????????????????????? | | ?????????????????????????????????????????????????? | | ?????????????????????????????????????????????????? | | ?????????????????????????????????????????????????? | | ?????????????????????????????????????????????????? | | ?????????????????????????????????????????????????? | | ?????????????????????????????????????????????????? | | ?????????????????????????????????????????????????? | | ?????????????????????????????????????????????????? | | ?????????????????????????????????????????????????? | | ?????????????????????????????????????????????????? | | ?????????????????????????????????????????????????? | | ?????????????????????????????????????????????????? | | ?????????????????????????????????????????????????? | | ?????????????????????????????????????????????????? | | ?????????????????????????????????????????????????? | | ?????????????????????????????????????????????????? | | ?????????????#######?????????????????????????????? | | ????????????## #####?????????????????????????? | | ???????????## #?????????????????????????? | | ???????????# #?????????????????????????? | | ????#???????# #?????????????????????????? | | ???? ####???# ## #?????????????????????????? | | ???? " ??????# #####?????????????????????? | | ????? ?????## !R##????????????????????? | | ????? ???### !@& #????????????????????? | | ????? ##### ### #?####??###??????????? | | ????? ## ## ### #### ###????????? | | ?????# ## "" ##???????? | | ?????# ### " & " #???????? | | ?????# # !& # ##### # #???????? | | ?????# ## # & & ###???### #???????? | | ??## ### # "" #??????# #???????? | | ???# # # " ?? ##???????? | | ??#### # # # " "" #????????? | | ## """"" " #### " ## #? ##????????? | | "" " ## #### "##??# ##?####? #?????????? | | """""" " #####??# ##??#####??????? #?????????? | | #"##"" "##??????## " #?????????????? ??????????? | | ??##" "##???????###" #????????????? ??????????? | | ??#" ###???????#" ##???????????? ??????????? | | ??#""! ##?????##" ##??????????? ??????????? | | ??##"" ##????# #???????????